bitfinex-derivatives/quotes_BNBF0:USTF0_20251027
["timestamp","ask_amount","ask_price","bid_price","bid_amount"]
[1761543708504,0.15099121,1153.9,1151.5,0.63978842]
[1761543708704,0.15099121,1153.9,1151.6,0.56532501]
[1761543708902,0.15099121,1153.9,1151.7,0.56532501]
[1761543709105,0.15099121,1153.9,1151.8,0.56532501]
[1761543709306,0.15099121,1153.9,1151.9,0.56532501]
[1761543709500,0.15099121,1153.9,1152.0,0.56532501]
[1761543709701,0.15099121,1153.9,1152.1,0.56532501]
[1761543709900,0.15099121,1153.9,1151.6,0.63978842]
[1761543710204,0.15099121,1153.9,1151.7,0.565427]
[1761543710405,0.15099121,1153.9,1151.8,0.565427]
[1761543710605,0.15099121,1153.9,1151.9,0.565427]
[1761543710904,0.15099121,1153.9,1152.0,0.565427]
[1761543711104,0.15099121,1153.9,1152.1,0.565427]
[1761543711301,0.15099121,1153.9,1151.5,0.63978842]
[1761543711302,0.15099121,1153.9,1152.2,0.56554803]
[1761543711501,0.15099121,1153.9,1151.5,0.63978842]
[1761543711706,0.15099121,1153.9,1151.6,1.20531904]
[1761543711906,0.15099121,1153.9,1151.7,0.56553062]
[1761543712202,0.15099121,1153.9,1151.8,0.56553062]
[1761543712401,0.15099121,1153.9,1151.9,0.56553062]
[1761543712604,0.15099121,1153.9,1152.0,0.56553062]
[1761543712803,0.15099121,1153.9,1152.1,0.56553062]
[1761543713007,0.15099121,1153.9,1152.2,0.56553062]
[1761543713204,0.15099121,1153.9,1151.5,0.63978842]
[1761543713502,0.15099121,1153.9,1151.6,1.20551488]
[1761543713704,0.15099121,1153.9,1151.7,0.56572646]
[1761543713904,0.15099121,1153.9,1151.8,0.56572646]
[1761543714103,0.15099121,1153.9,1151.9,0.56572646]
[1761543714308,0.15099121,1153.9,1152.0,0.56572646]
[1761543714603,0.15099121,1153.9,1152.1,0.56572646]
[1761543714804,0.15099121,1153.9,1152.2,0.56572646]
[1761543715004,0.15099121,1153.9,1151.6,0.63978842]
[1761543715206,0.15099121,1153.9,1151.7,0.56577967]
[1761543715501,0.15099121,1153.9,1151.8,0.56577967]
[1761543715703,0.15099121,1153.9,1151.9,0.56577967]
[1761543715903,0.15099121,1153.9,1151.6,0.63978842]
[1761543715904,0.15099121,1153.9,1152.0,0.56577967]
[1761543716105,0.15099121,1153.9,1152.1,0.56577967]
[1761543716305,0.15099121,1153.9,1152.2,0.56577967]
[1761543716608,0.15099121,1153.9,1151.6,0.63978842]
[1761543716808,0.15099121,1153.9,1151.7,0.56591946]
[1761543717104,0.15099121,1153.9,1151.8,0.56591946]
[1761543717309,0.15099121,1153.9,1151.9,0.56591946]
[1761543717508,0.15099121,1153.9,1152.0,0.56591946]
[1761543717708,0.15099121,1153.9,1152.1,0.56591946]
[1761543717909,0.15099121,1153.9,1152.2,0.56591946]
[1761543718108,0.15099121,1153.9,1151.6,0.63978842]
[1761543718307,0.15099121,1153.9,1151.7,0.56596454]
[1761543718506,0.15099121,1153.9,1151.8,0.56596454]
[1761543718708,0.15099121,1153.9,1151.9,0.56596454]
[1761543718908,0.15099121,1153.9,1152.0,0.56596454]
[1761543719103,0.15099121,1153.9,1152.1,0.56596454]
[1761543719306,0.15099121,1153.9,1152.2,0.56596454]
[1761543719508,0.15099121,1153.9,1151.6,0.63978842]
[1761543719714,0.15099121,1153.9,1151.7,0.5662907]
[1761543719914,0.15099121,1153.9,1151.8,0.5662907]
[1761543720113,0.15099121,1153.9,1151.9,0.5662907]
[1761543720414,0.15099121,1153.9,1152.0,0.5662907]
[1761543720614,0.15099121,1153.9,1152.1,0.5662907]
[1761543720814,0.15099121,1153.9,1152.2,0.5662907]
[1761543721014,0.15099121,1153.9,1151.6,0.63978842]
[1761543721214,0.15099121,1153.9,1151.7,0.56628805]
[1761543721514,0.15099121,1153.9,1151.8,0.56628805]
[1761543721714,0.15099121,1153.9,1151.9,0.56628805]
[1761543722014,0.15099121,1153.9,1152.0,0.56628805]
[1761543722212,0.15099121,1153.9,1152.1,0.56628805]
[1761543722417,0.15099121,1153.9,1152.2,0.56628805]
[1761543722618,0.15099121,1153.9,1151.6,0.63978842]
[1761543722814,0.15099121,1153.9,1151.7,0.56649597]
[1761543723012,0.15099121,1153.9,1151.8,0.56649597]
[1761543723214,0.15099121,1153.9,1151.9,0.56649597]
[1761543723414,0.15099121,1153.9,1152.0,0.56649597]
[1761543723616,0.15099121,1153.9,1152.1,0.56649597]
[1761543723815,0.15099121,1153.9,1152.2,0.56649597]
[1761543724020,0.15099121,1153.9,1151.7,0.63978842]
[1761543724216,0.15099121,1153.9,1151.8,0.56662196]
[1761543724417,0.15099121,1153.9,1151.9,1.77462196]
[1761543724618,0.15099121,1153.9,1152.0,0.56662196]
[1761543724818,0.15099121,1153.9,1152.1,0.56662196]
[1761543725017,0.15099121,1153.9,1152.2,0.56662196]
[1761543725223,0.15099121,1153.9,1151.9,1.208]
[1761543725425,0.15099121,1153.9,1152.0,0.56715511]
[1761543725620,0.15099121,1153.9,1152.1,0.56715511]
[1761543725921,0.15099121,1153.9,1152.2,0.56715511]
[1761543726124,0.15099121,1153.9,1151.9,1.208]
[1761543726319,0.15099121,1153.9,1152.0,0.56730662]
[1761543726525,0.15099121,1153.9,1152.1,0.56730662]
[1761543726720,0.15099121,1153.9,1152.2,0.56730662]
[1761543727019,0.15099121,1153.9,1151.9,1.208]
[1761543727224,0.15099121,1153.9,1152.0,0.56731283]
[1761543727425,0.15099121,1153.9,1152.1,0.56731283]
[1761543727621,0.15099121,1153.9,1151.9,1.208]
[1761543727821,0.15099121,1153.9,1152.0,0.56742936]
[1761543728019,0.15099121,1153.9,1152.1,0.56742936]
[1761543728221,0.15099121,1153.9,1151.9,1.208]
[1761543728425,0.15099121,1153.9,1152.0,0.56748716]
[1761543728625,0.15099121,1153.9,1152.1,0.56748716]
[1761543728922,0.15099121,1153.9,1151.9,1.208]
[1761543729222,0.15099121,1153.9,1152.0,0.56744902]
[1761543729427,0.15099121,1153.9,1152.1,0.56744902]
[1761543729625,0.15099121,1153.9,1151.9,1.208]
[1761543729822,0.15099121,1153.9,1152.0,0.56747097]
[1761543730022,0.15099121,1153.9,1152.1,0.56747097]
[1761543730226,0.15099121,1153.9,1151.9,1.208]
[1761543730426,0.15099121,1153.9,1152.0,0.56749816]
[1761543730626,0.15099121,1153.9,1152.1,0.56749816]
[1761543730824,0.15099121,1153.9,1151.9,1.208]
[1761543731123,0.15099121,1153.9,1152.0,0.56749784]
[1761543731323,0.15099121,1153.9,1152.1,0.56749784]
[1761543731522,0.15099121,1153.9,1151.9,1.208]
[1761543731727,0.15099121,1153.9,1152.0,0.56752739]
[1761543731926,0.15099121,1153.9,1152.1,0.56752739]
[1761543732224,0.15099121,1153.9,1151.9,1.208]
[1761543732427,0.15099121,1153.9,1152.0,0.56759449]
[1761543732727,0.15099121,1153.9,1152.1,0.56759449]
[1761543732924,0.15099121,1153.9,1151.9,1.208]
[1761543733126,0.15099121,1153.9,1152.0,0.56753909]
[1761543733328,0.15099121,1153.9,1152.1,0.56753909]
[1761543733624,0.15099121,1153.9,1152.2,0.56753909]
[1761543733823,0.15099121,1153.9,1152.3,0.56753909]
[1761543734028,0.15099121,1153.9,1152.4,0.56753909]
[1761543734228,0.15099121,1153.9,1151.9,1.208]
[1761543734523,0.15099121,1153.9,1152.0,0.56744937]
[1761543734723,0.15099121,1153.9,1152.1,0.56744937]
[1761543734924,0.15099121,1153.9,1152.2,0.56744937]
[1761543735125,0.15099121,1153.9,1152.3,0.56744937]
[1761543735323,0.15099121,1153.9,1152.4,0.56744937]
[1761543735525,0.15099121,1153.9,1151.9,1.208]
[1761543735723,0.15099121,1153.9,1152.0,0.56744153]
[1761543735928,0.15099121,1153.9,1152.1,0.56744153]
[1761543736125,0.15099121,1153.9,1152.2,0.56744153]
[1761543736324,0.15099121,1153.9,1152.3,0.56744153]
[1761543736529,0.15099121,1153.9,1151.9,1.208]
[1761543736729,0.15099121,1153.9,1152.0,0.56744071]
[1761543736927,0.15099121,1153.9,1152.1,0.56744071]
[1761543737126,0.15099121,1153.9,1152.2,0.56744071]
[1761543737331,0.15099121,1153.9,1152.3,0.56744071]
[1761543737532,0.15099121,1153.9,1151.9,1.208]
[1761543737832,0.15099121,1153.9,1152.0,0.56744444]
[1761543738032,0.15099121,1153.9,1152.1,0.56744444]
[1761543738232,0.15099121,1153.9,1152.2,0.56744444]
[1761543738434,0.15099121,1153.9,1152.3,0.56744444]
[1761543738734,0.15099121,1153.9,1151.9,1.208]
[1761543738930,0.15099121,1153.9,1152.0,0.5671246]
[1761543739232,0.15099121,1153.9,1152.1,0.5671246]
[1761543739431,0.15099121,1153.9,1152.2,0.5671246]
[1761543739635,0.15099121,1153.9,1152.3,0.5671246]
[1761543739831,0.15099121,1153.9,1151.9,1.208]
[1761543740032,0.15099121,1153.9,1152.0,0.56715221]
[1761543740232,0.15099121,1153.9,1152.1,0.56715221]
[1761543740436,0.15099121,1153.9,1152.2,0.56715221]
[1761543740633,0.15099121,1153.9,1152.3,0.56715221]
[1761543740834,0.15099121,1153.9,1151.9,1.208]
[1761543741037,0.15099121,1153.9,1152.0,0.56721091]
[1761543741333,0.15099121,1153.9,1152.1,0.56721091]
[1761543741533,0.15099121,1153.9,1152.2,0.56721091]
[1761543741738,0.15099121,1153.9,1152.3,0.56721091]
[1761543742035,0.15099121,1153.9,1151.8,0.63978842]
[1761543742234,0.15099121,1153.9,1151.9,0.56717728]
[1761543742435,0.15099121,1153.9,1152.0,0.56717728]
[1761543742633,0.15099121,1153.9,1152.1,0.56717728]
[1761543742834,0.15099121,1153.9,1152.2,0.56717728]
[1761543743039,0.15099121,1153.9,1152.3,0.56717728]
[1761543743241,0.15099121,1153.9,1151.8,0.63978842]
[1761543743438,0.15099121,1153.9,1151.9,1.20696978]
[1761543743637,0.15099121,1153.9,1152.0,0.56718136]
[1761543743840,0.15099121,1153.9,1152.1,2.07418136]
[1761543744040,0.15099121,1153.9,1152.2,0.56718136]
[1761543744238,0.15099121,1153.9,1152.3,0.56718136]
[1761543744440,0.15099121,1153.9,1152.1,1.507]
[1761543744637,0.15099121,1153.9,1152.2,0.56717415]
[1761543744840,0.15099121,1153.9,1152.3,0.56717415]
[1761543745040,0.15099121,1153.9,1152.1,1.507]
[1761543745240,0.15099121,1153.9,1152.2,0.56717415]
[1761543745540,0.15099121,1153.9,1152.3,0.56717415]
[1761543745737,0.15099121,1153.9,1152.4,0.56717415]
[1761543745936,0.15099121,1153.9,1152.1,1.507]
[1761543746241,0.15099121,1153.9,1152.2,0.5672078]
[1761543746440,0.15099121,1153.9,1152.3,0.5672078]
[1761543746639,0.15099121,1153.9,1152.4,0.5672078]
[1761543746939,0.15099121,1153.9,1152.1,1.507]
[1761543747136,0.15099121,1153.9,1152.2,0.56718781]
[1761543747341,2.1611392,1154.8,1152.3,0.56718781]
[1761543747541,0.15095551,1154.0,1152.4,0.56718781]
[1761543747742,2.1611392,1154.8,1152.1,1.507]
[1761543748037,0.15094896,1154.0,1152.2,0.56715428]
[1761543748341,2.1611392,1154.8,1152.3,0.56715428]
[1761543748537,2.1611392,1154.8,1152.4,0.56715428]
[1761543748741,0.15095551,1154.0,1152.1,1.507]
[1761543748941,2.1611392,1154.8,1152.2,0.56800869]
[1761543749142,0.15094896,1154.3,1152.3,0.56800869]
[1761543749340,0.15094896,1154.3,1152.4,0.56800869]
[1761543749639,0.15094896,1154.3,1152.1,1.507]
[1761543749941,0.15094896,1154.3,1152.2,0.56797313]
[1761543750138,0.15094896,1154.3,1152.3,0.56797313]
[1761543750337,0.15094896,1154.3,1152.4,0.56797313]
[1761543750541,0.15094896,1154.3,1152.1,1.507]
[1761543750740,0.15094896,1154.3,1152.2,0.56812217]
[1761543750940,0.15094896,1154.3,1152.3,0.56812217]
[1761543751140,0.15094896,1154.3,1152.4,0.56812217]
[1761543751341,0.15094896,1154.3,1152.1,1.507]
[1761543751539,0.15094896,1154.3,1152.2,0.56807602]
[1761543751739,0.15094896,1154.3,1152.3,0.56807602]
[1761543751938,0.15094896,1154.3,1152.4,0.56807602]
[1761543752142,0.15094896,1154.3,1152.1,1.507]
[1761543752342,0.15094896,1154.3,1152.2,0.56810778]
[1761543752544,0.15094896,1154.3,1152.3,0.56810778]
[1761543752744,0.15094896,1154.3,1152.4,0.56810778]
[1761543752943,0.15094896,1154.3,1152.1,1.507]
[1761543753144,0.15094896,1154.3,1152.2,0.56804858]
[1761543753443,0.15094896,1154.3,1152.3,0.56804858]
[1761543753744,0.15094896,1154.3,1152.4,0.56804858]
[1761543753943,0.15094896,1154.3,1152.1,1.507]
[1761543754143,0.15094896,1154.3,1152.2,0.56800482]
[1761543754444,0.15094896,1154.3,1152.3,0.56800482]
[1761543754743,0.15094896,1154.3,1152.4,0.56800482]
[1761543755043,0.15094896,1154.3,1152.1,1.507]
[1761543755240,0.15094896,1154.3,1152.2,0.5679495]
[1761543755439,0.15094896,1154.3,1152.3,0.5679495]
[1761543755639,0.15094896,1154.3,1152.1,1.507]
[1761543755844,0.15094896,1154.3,1152.2,0.5679312]
[1761543756039,0.15094896,1154.3,1152.3,0.5679312]
[1761543756241,0.15094896,1154.3,1152.1,1.507]
[1761543756540,0.15094896,1154.3,1152.2,0.56791701]
[1761543756743,0.15094896,1154.3,1152.3,0.56791701]
[1761543756941,0.15094896,1154.3,1152.1,1.507]
[1761543757240,0.15094896,1154.3,1152.2,0.56791648]
[1761543757444,0.15094896,1154.3,1152.3,0.56791648]
[1761543757640,0.15094896,1154.3,1152.1,1.507]
[1761543757843,0.15094896,1154.3,1152.2,0.56793047]
[1761543758043,0.15094896,1154.3,1152.3,0.56793047]
[1761543758246,0.15094896,1154.3,1152.4,0.56793047]
[1761543758440,0.15094896,1154.3,1152.1,1.507]
[1761543758642,0.15094896,1154.3,1152.2,0.56777075]
[1761543758842,0.15094896,1154.3,1152.3,0.56777075]
[1761543759042,0.15094896,1154.3,1152.4,0.56777075]
[1761543759246,0.15094896,1154.3,1152.1,1.507]
[1761543759447,0.15094896,1154.3,1152.2,0.56772171]
[1761543759646,0.15094896,1154.3,1152.3,0.56772171]
[1761543759846,0.15094896,1154.3,1152.4,0.56772171]
[1761543760141,0.15094896,1154.3,1152.1,1.507]
[1761543760343,0.15094896,1154.3,1152.2,0.56770842]
[1761543760646,0.15094896,1154.3,1152.3,0.56770842]
[1761543760848,0.15094896,1154.3,1152.4,0.56770842]
[1761543761046,0.15094896,1154.3,1152.1,1.507]
[1761543761244,0.15094896,1154.3,1152.2,0.56769228]
[1761543761448,0.15094896,1154.3,1152.3,0.56769228]
[1761543761646,0.15094896,1154.3,1152.4,0.56769228]
[1761543761945,0.15094896,1154.3,1152.1,1.507]
[1761543762148,0.15094896,1154.3,1152.2,0.56766065]
[1761543762349,0.15094896,1154.3,1152.3,0.56766065]
[1761543762548,0.15094896,1154.3,1152.4,0.56766065]
[1761543762745,0.15094896,1154.3,1152.1,1.507]
[1761543762948,0.15094896,1154.3,1152.2,0.56744847]
[1761543763146,0.15094896,1154.3,1152.3,0.56744847]
[1761543763348,0.15094896,1154.3,1152.4,0.56744847]
[1761543763349,2.31208816,1154.3,1152.4,0.56744847]
[1761543763550,2.31208816,1154.3,1152.1,1.507]
[1761543763850,2.31208816,1154.3,1152.2,0.56740385]
[1761543764050,2.31208816,1154.3,1152.0,0.63978842]
[1761543764051,2.31208816,1154.3,1152.3,0.56740385]
[1761543764248,2.31208816,1154.3,1152.4,0.56740385]
[1761543764551,2.31208816,1154.3,1152.0,0.63978842]
[1761543764751,2.31208816,1154.3,1152.1,0.56735193]
[1761543764951,2.31208816,1154.3,1152.2,0.56735193]
[1761543765151,2.31208816,1154.3,1152.3,0.56735193]
[1761543765351,2.1611392,1154.1,1152.4,0.56735193]
[1761543765552,2.1611392,1154.1,1152.0,0.63978842]
[1761543765847,2.1611392,1154.1,1152.1,0.56730966]
[1761543766049,2.1611392,1154.1,1152.2,0.56730966]
[1761543766249,2.1611392,1154.1,1152.3,0.56730966]
[1761543766449,0.15094896,1154.3,1152.4,0.56730966]
[1761543766648,0.15094896,1154.3,1152.0,0.63978842]
[1761543766852,0.15094896,1154.3,1152.1,0.56728963]
[1761543767050,0.15094896,1154.3,1152.2,0.56728963]
[1761543767251,0.15094896,1154.3,1152.3,0.56728963]
[1761543767554,0.15094896,1154.3,1152.4,1.71328963]
[1761543767754,0.15094896,1154.3,1152.4,1.146]
[1761543771856,0.15094896,1154.3,1152.5,0.56719648]
[1761543772153,0.15094896,1154.3,1152.4,1.146]
[1761543772458,0.15094896,1154.3,1152.5,0.56717817]
[1761543772658,0.15094896,1154.3,1152.4,1.146]
[1761543772856,0.15094896,1154.3,1152.5,0.5665343]
[1761543773054,0.15094896,1154.3,1152.6,0.5665343]
[1761543773255,0.15094896,1154.3,1152.4,1.146]
[1761543773455,0.15094896,1154.3,1152.5,0.56633915]
[1761543773759,0.15094896,1154.3,1152.6,0.56633915]
[1761543773959,0.15094896,1154.3,1152.4,1.146]
[1761543774159,0.15094896,1154.3,1152.5,0.56633915]
[1761543774358,0.15094896,1154.3,1152.6,0.56633915]
[1761543774559,0.15094896,1154.3,1152.4,1.146]
[1761543774762,0.15094896,1154.3,1152.5,0.56617785]
[1761543774962,0.15094896,1154.3,1152.6,0.56617785]
[1761543775258,0.15094896,1154.3,1152.4,1.146]
[1761543775459,0.15094896,1154.3,1152.5,0.56610333]
[1761543775661,0.15094896,1154.3,1152.6,0.56610333]
[1761543775963,0.15094896,1154.3,1152.4,1.146]
[1761543776161,0.15094896,1154.3,1152.5,0.56610326]
[1761543776361,0.15094896,1154.3,1152.4,1.146]
[1761543776558,0.15094896,1154.3,1152.5,0.56603961]
[1761543776762,0.15094896,1154.3,1152.4,1.146]
[1761543776961,0.15094896,1154.3,1152.5,0.56603961]
[1761543777159,0.15094896,1154.3,1152.4,1.146]
[1761543777366,0.15094896,1154.3,1152.5,0.56597496]
[1761543777563,0.15094896,1154.3,1152.4,1.146]
[1761543777862,0.15094896,1154.3,1152.5,0.565982]
[1761543778059,0.15094896,1154.3,1152.4,1.146]
[1761543778360,0.15094896,1154.3,1152.5,0.565982]
[1761543778559,0.15094896,1154.3,1152.4,1.146]
[1761543778761,0.15094896,1154.3,1152.5,0.56589524]
[1761543778965,0.15094896,1154.3,1152.4,1.146]
[1761543779165,0.15094896,1154.3,1152.5,0.56589524]
[1761543779365,0.15094896,1154.3,1152.4,1.146]
[1761543779561,0.15094896,1154.3,1152.5,0.56585276]
[1761543779762,0.15094896,1154.3,1152.4,1.146]
[1761543779968,0.15094896,1154.3,1152.5,0.56585262]
[1761543780164,0.15094896,1154.3,1152.4,1.146]
[1761543780365,0.15094896,1154.3,1152.5,0.56585262]
[1761543780664,0.15094896,1154.3,1152.4,1.146]
[1761543780862,0.15094896,1154.3,1152.5,0.56589515]
[1761543781062,0.15094896,1154.3,1152.4,1.146]
[1761543781266,0.15094896,1154.3,1152.5,0.56589515]
[1761543781466,0.15094896,1154.3,1152.4,1.146]
[1761543781664,0.15094896,1154.3,1152.5,0.56586865]
[1761543781862,0.15094896,1154.3,1152.4,1.146]
[1761543782662,2.31208816,1154.3,1152.4,1.146]
[1761543784368,0.15094896,1154.3,1152.4,1.146]
[1761543791772,0.15094896,1154.3,1152.5,0.56627135]
[1761543792074,0.15094896,1154.3,1152.6,0.56627135]
[1761543792376,0.15094896,1154.3,1152.4,1.146]
[1761543792575,0.15094896,1154.3,1152.5,0.56638091]
[1761543792776,0.15094896,1154.3,1151.9,0.63978842]
[1761543792972,0.15094896,1154.3,1152.0,0.56648836]
[1761543793172,0.15094896,1154.3,1152.1,0.56648836]
[1761543793374,0.15094896,1154.3,1152.2,0.56648836]
[1761543793575,0.15094896,1154.3,1152.3,0.56648836]
[1761543793776,0.15094896,1154.3,1152.4,0.56648836]
[1761543794075,0.15094896,1154.3,1152.5,0.56648836]
[1761543794273,0.15094896,1154.3,1152.0,0.63978842]
[1761543794476,0.15094896,1154.3,1152.1,0.56648679]
[1761543794772,0.15094896,1154.3,1152.2,0.56648679]
[1761543794973,0.15094896,1154.3,1152.3,0.56648679]
[1761543795176,0.15094896,1154.3,1152.4,0.56648679]
[1761543795376,0.15094896,1154.3,1152.5,0.56648679]
[1761543795676,0.15094896,1154.3,1152.6,1.125]
[1761543814793,0.15094896,1154.3,1152.2,0.63978842]
[1761543814994,0.15094896,1154.3,1152.3,0.56662671]
[1761543815194,0.15094896,1154.3,1152.4,0.56662671]
[1761543815395,0.15094896,1154.3,1152.5,0.56662671]
[1761543815593,0.15094896,1154.3,1152.6,0.56662671]
[1761543815794,0.15094896,1154.3,1152.2,0.63978842]
[1761543815994,0.15094896,1154.3,1152.3,0.56666661]
[1761543816295,0.15094896,1154.3,1152.4,0.56666661]
[1761543816494,0.15094896,1154.3,1152.5,0.56666661]
[1761543816796,0.15094896,1154.3,1152.6,0.56666661]
[1761543816997,0.15094896,1154.3,1152.2,0.63978842]
[1761543817297,0.15094896,1154.3,1152.3,1.96171158]
[1761543817497,0.15094896,1154.3,1152.4,0.56671158]
[1761543817697,0.15094896,1154.3,1152.5,0.56671158]
[1761543817998,0.15094896,1154.3,1152.6,0.56671158]
[1761543818300,0.15094896,1154.3,1152.3,1.395]
[1761543818500,0.15094896,1154.3,1152.4,0.56678464]
[1761543818797,0.15094896,1154.3,1152.5,0.56678464]
[1761543818995,0.15094896,1154.3,1152.6,0.56678464]
[1761543819195,0.15094896,1154.3,1152.3,1.395]
[1761543819402,0.15094896,1154.3,1152.4,0.56678919]
[1761543819600,0.15094896,1154.3,1152.5,0.56678919]
[1761543819801,0.15094896,1154.3,1152.6,0.56678919]
[1761543820002,0.15094896,1154.3,1152.3,1.395]
[1761543820202,0.15094896,1154.3,1152.4,0.56679967]
[1761543820499,0.15094896,1154.3,1152.5,0.56679967]
[1761543820698,0.15094896,1154.3,1152.6,0.56679967]
[1761543820901,0.15094896,1154.3,1152.3,1.395]
[1761543821098,0.15094896,1154.3,1152.4,0.56685097]
[1761543821398,0.15094896,1154.3,1152.5,0.56685097]
[1761543821597,0.15094896,1154.3,1152.3,1.395]
[1761543821801,0.15094896,1154.3,1152.4,0.56706591]
[1761543822002,0.15094896,1154.3,1152.5,0.56706591]
[1761543822206,0.15094896,1154.3,1152.3,1.395]
[1761543822399,0.15094896,1154.3,1152.4,0.56708283]
[1761543822598,0.15094896,1154.3,1152.5,0.56708283]
[1761543822798,0.15094896,1154.3,1152.3,1.395]
[1761543822998,0.15094896,1154.3,1152.4,0.56706947]
[1761543823198,0.15094896,1154.3,1152.5,0.56706947]
[1761543823405,0.15094896,1154.3,1152.3,1.395]
[1761543823704,0.15094896,1154.3,1152.4,0.56708336]
[1761543823904,0.15094896,1154.3,1152.5,0.56708336]
[1761543824099,0.15094896,1154.3,1152.3,1.395]
[1761543824303,0.15094896,1154.3,1152.4,0.5670797]
[1761543824505,0.15094896,1154.3,1152.5,0.5670797]
[1761543824707,0.15094896,1154.3,1152.3,1.395]
[1761543824908,0.15094896,1154.3,1152.4,0.5670975]
[1761543825110,0.15094896,1154.3,1152.5,0.5670975]
[1761543825408,0.15094896,1154.3,1152.3,1.395]
[1761543825606,0.15094896,1154.3,1152.4,0.56710643]
[1761543825810,0.15094896,1154.3,1152.5,0.56710643]
[1761543826010,0.15094896,1154.3,1152.3,1.395]
[1761543826209,0.15094896,1154.3,1152.4,0.56710643]
[1761543826411,0.15094896,1154.3,1152.5,0.56710643]
[1761543826609,0.15094896,1154.3,1152.3,1.395]
[1761543826911,0.15094896,1154.3,1152.4,0.56711547]
[1761543827207,0.15094896,1154.3,1152.5,0.56711547]
[1761543827410,0.15094896,1154.3,1152.3,1.395]
[1761543827607,0.15094896,1154.3,1152.4,0.56713278]
[1761543827807,0.15094896,1154.3,1152.3,1.395]
[1761543827808,0.15094896,1154.3,1152.5,0.56713278]
[1761543828007,0.15094896,1154.3,1152.3,1.395]
[1761543828205,0.15094896,1154.3,1152.4,0.56714327]
[1761543828411,0.15094896,1154.3,1152.5,0.56714327]
[1761543828610,0.15094896,1154.3,1152.3,1.395]
[1761543828810,0.15094896,1154.3,1152.4,0.56709015]
[1761543829009,0.15094896,1154.3,1152.5,0.56709015]
[1761543829215,0.15094896,1154.3,1152.3,1.395]
[1761543829509,0.15094896,1154.3,1152.4,0.56709765]
[1761543829713,0.15094896,1154.3,1152.5,0.56709765]
[1761543829914,0.15094896,1154.3,1152.3,1.395]
[1761543830108,0.15094896,1154.3,1152.4,0.56709765]
[1761543830311,0.15094896,1154.3,1152.5,0.56709765]
[1761543830513,0.15094896,1154.3,1152.3,1.395]
[1761543830714,0.15094896,1154.3,1152.4,0.56710522]
[1761543831012,0.15094896,1154.3,1152.5,0.56710522]
[1761543831213,0.15094896,1154.3,1152.3,1.395]
[1761543831410,0.15094896,1154.3,1152.4,0.56711286]
[1761543831712,0.15094896,1154.3,1152.5,0.56711286]
[1761543832014,0.15094896,1154.3,1152.3,1.395]
[1761543832211,0.15094896,1154.3,1152.4,0.56706027]
[1761543832414,0.15094896,1154.3,1152.5,0.56706027]
[1761543832611,0.15094896,1154.3,1152.3,1.395]
[1761543832812,0.15094896,1154.3,1152.4,0.56704522]
[1761543833016,0.15094896,1154.3,1152.3,1.395]
[1761543833214,0.15094896,1154.3,1152.4,0.56704522]
[1761543833412,0.15094896,1154.3,1152.3,1.395]
[1761543833615,0.15094896,1154.3,1152.4,0.56704033]
[1761543833914,0.15094896,1154.3,1152.3,1.395]
[1761543834113,0.15094896,1154.3,1152.4,0.56705104]
[1761543834318,0.15094896,1154.3,1152.3,1.395]
[1761543834514,0.15094896,1154.3,1152.4,0.56703112]
[1761543834718,0.15094896,1154.3,1152.5,0.5670128]
[1761543834915,0.15094896,1154.3,1152.3,1.395]
[1761543835116,0.15094896,1154.3,1152.4,0.56703112]
[1761543835318,0.15094896,1154.3,1152.3,1.395]
[1761543835518,0.15094896,1154.3,1152.4,0.56701357]
[1761543835815,0.15094896,1154.3,1152.5,0.56698432]
[1761543836018,0.15094896,1154.3,1152.3,1.395]
[1761543836221,0.15094896,1154.3,1152.4,0.56698432]
[1761543836520,0.15094896,1154.3,1152.5,0.56698432]
[1761543836718,0.15094896,1154.3,1152.3,1.395]
[1761543837017,0.15094896,1154.3,1152.4,0.56697638]
[1761543837221,0.15094896,1154.3,1152.5,0.56697638]
[1761543837422,0.15094896,1154.3,1152.3,1.395]
[1761543837619,0.15094896,1154.3,1152.4,0.56696607]
[1761543837817,0.15094896,1154.3,1152.5,0.56696607]
[1761543838117,0.15094896,1154.3,1152.3,1.395]
[1761543838320,0.15094896,1154.3,1152.4,0.56679511]
[1761543838520,0.15094896,1154.3,1152.3,1.395]
[1761543838717,0.15094896,1154.3,1152.4,0.5663509]
[1761543838922,0.15094896,1154.3,1152.3,1.395]
[1761543839121,0.15094896,1154.3,1152.4,0.5663509]
[1761543839322,0.15094896,1154.3,1152.3,1.395]
[1761543839523,0.15094896,1154.3,1152.4,0.56634113]
[1761543839721,0.15094896,1154.3,1152.3,1.395]
[1761543839924,0.15094896,1154.3,1152.4,0.56634113]
[1761543840123,0.15094896,1154.3,1152.3,1.395]
[1761543840324,0.15094896,1154.3,1152.4,0.56634113]
[1761543840521,0.15094896,1154.3,1152.3,1.395]
[1761543840823,0.15094896,1154.3,1152.4,0.56634113]
[1761543841023,0.15094896,1154.3,1152.3,1.395]
[1761543841224,0.15094896,1154.3,1152.4,0.56634113]
[1761543841421,0.15094896,1154.3,1152.3,1.395]
[1761543841620,0.15094896,1154.3,1152.4,0.5663285]
[1761543841922,0.15094896,1154.3,1152.3,1.395]
[1761543842224,0.15094896,1154.3,1152.4,0.56634186]
[1761543842423,0.15094896,1154.3,1152.3,1.395]
[1761543842624,0.15094896,1154.3,1152.4,0.5663309]
[1761543842826,0.15094896,1154.3,1152.3,1.395]
[1761543843024,0.15094896,1154.3,1152.4,0.5663309]
[1761543843223,0.15094896,1154.3,1152.3,1.395]
[1761543843424,0.15094896,1154.3,1152.4,0.56631902]
[1761543843629,0.15094896,1154.3,1152.3,1.395]
[1761543843828,0.15094896,1154.3,1152.4,0.56631902]
[1761543844025,0.15094896,1154.3,1152.3,1.395]
[1761543844224,0.15094896,1154.3,1152.4,0.56631902]
[1761543844529,0.15094896,1154.3,1152.3,1.395]
[1761543844727,0.15094896,1154.3,1152.4,0.56629764]
[1761543844925,0.15094896,1154.3,1152.3,1.395]
[1761543845228,0.15094896,1154.3,1152.4,0.56629764]
[1761543845428,0.15094896,1154.3,1152.5,0.56627859]
[1761543845632,0.15094896,1154.3,1152.3,1.395]
[1761543845831,0.15094896,1154.3,1152.4,0.56631473]
[1761543846031,0.15094896,1154.3,1152.3,1.395]
[1761543846230,0.15094896,1154.3,1152.4,0.56631473]
[1761543846431,0.15094896,1154.3,1152.3,1.395]
[1761543846631,0.15094896,1154.3,1152.4,0.56630172]
[1761543846835,0.15094896,1154.3,1152.3,1.395]
[1761543847035,0.15094896,1154.3,1152.4,0.56630172]
[1761543847236,0.15094896,1154.3,1152.3,1.395]
[1761543847435,0.15094896,1154.3,1152.4,0.56628893]
[1761543847633,0.15094896,1154.3,1152.3,1.395]
[1761543847938,0.15094896,1154.3,1152.4,0.56628894]
[1761543848139,0.15094896,1154.3,1152.3,1.395]